bitfinex/quotes_ETHUSD_20251212
["timestamp","ask_amount","ask_price","bid_price","bid_amount"]
[1765554713132,3.170186,3097.5,3095.3,0.4748]
[1765554713300,0.05,3097.2,3095.3,0.4748]
[1765554713617,9.70739549,3097.6,3095.3,0.4748]
[1765554713618,0.58047529,3097.3,3095.3,0.4748]
[1765554713782,0.58047529,3097.1,3095.3,0.4748]
[1765554713984,0.63047529,3097.5,3095.3,0.4748]
[1765554714185,26.04977,3097.2,3095.4,6.46120048]
[1765554714387,0.58047529,3096.9,3095.4,3.79060024]
[1765554714587,9.68585541,3097.3,3094.8,0.1873]
[1765554714588,3.99048,3096.4,3094.8,0.1873]
[1765554714885,2.216232,3096.2,3094.9,1.0348]
[1765554715090,3.545678,3096.3,3094.9,4.26581981]
[1765554715292,0.58047529,3096.4,3095.2,3.23073674]
[1765554715500,0.58047529,3096.4,3095.1,3.23087932]
[1765554715501,9.488355,3096.3,3095.1,3.23087932]
[1765554715718,9.488355,3096.3,3094.8,3.97850946]
[1765554715719,0.05,3095.8,3094.8,0.1873]
[1765554715902,0.05,3096.0,3094.8,0.1873]
[1765554716088,12.551997,3095.9,3094.8,0.1873]
[1765554716417,0.58047529,3096.5,3094.9,0.4748]
[1765554716633,7.03939654,3096.5,3094.9,0.4748]
[1765554716815,3.50403,3096.4,3094.9,0.4748]
[1765554717389,6.45873174,3096.6,3094.9,0.4748]
[1765554717710,16.24213587,3096.6,3096.5,0.195774]
[1765554717915,16.82261116,3096.6,3096.5,0.195774]
[1765554718423,25.51289216,3096.6,3096.5,0.195774]
[1765554718623,25.51289216,3096.6,3096.5,1e-08]
[1765554720389,3.22923194,3096.8,3096.5,1e-08]
[1765554720390,0.05,3096.8,3096.5,1e-08]
[1765554720590,14.497013,3096.6,3096.5,1e-08]
[1765554720789,4.202016,3096.8,3096.5,1e-08]
[1765554721019,3.22882696,3097.1,3096.5,1e-08]
[1765554721225,6.45765392,3097.1,3096.6,0.4748]
[1765554721421,30.0,3097.4,3096.5,1e-08]
[1765554721621,0.58047529,3097.3,3096.5,1e-08]
[1765554721835,3.22841,3097.5,3096.5,1e-08]
[1765554721990,0.07244417,3097.6,3096.5,0.47480001]
[1765554722193,10.92878921,3098.6,3097.5,0.193]
[1765554722194,3.25036439,3098.0,3097.5,0.193]
[1765554722449,0.02244417,3098.6,3097.6,0.4748]
[1765554722598,0.02244417,3098.8,3097.6,0.4748]
[1765554724426,0.02244417,3098.8,3097.7,6.45640312]
[1765554724637,8.791584,3098.7,3097.7,6.45640312]
[1765554724816,1.20411162,3098.7,3097.8,0.4748]
[1765554725016,1.20411162,3098.7,3097.5,0.193]
[1765554725017,20.585165,3098.5,3097.5,0.193]
[1765554725223,1.20411162,3098.7,3097.6,3.70310578]
[1765554725392,0.58047529,3099.1,3097.7,0.4748]
[1765554725598,0.05,3098.7,3097.7,0.4748]
[1765554725798,0.405504,3098.0,3096.9,0.193]
[1765554726009,0.05,3096.7,3096.5,1e-08]
[1765554726252,34.60685204,3096.6,3096.5,1e-08]
[1765554726535,34.60685204,3096.6,3094.6,0.4748]
[1765554726536,10.498158,3095.7,3094.9,0.193]
[1765554726737,0.05,3096.0,3094.9,0.193]
[1765554726922,0.58047529,3096.2,3094.9,0.6678]
[1765554727110,0.58047529,3096.0,3094.9,0.6678]
[1765554727314,28.738183,3095.9,3094.9,0.193]
[1765554727537,16.284165,3095.8,3094.9,0.193]
[1765554727838,16.284165,3095.8,3094.5,0.4748]
[1765554727839,3.443523,3095.6,3094.5,3.7063265]
[1765554728242,3.443523,3095.6,3094.2,0.7463]
[1765554728441,2.66802,3095.7,3094.8,3.23122657]
[1765554728632,2.66802,3095.7,3094.7,3.23131222]
[1765554728821,2.66802,3095.7,3094.7,6.4626432]
[1765554729147,0.05,3094.9,3094.0,3.8320587]
[1765554729313,7.32508,3094.8,3094.0,0.6]
[1765554729831,2.575848,3095.2,3094.1,0.6678]
[1765554730037,0.58047529,3095.1,3094.1,0.6678]
[1765554730247,12.86235757,3094.8,3094.0,0.6]
[1765554730450,7.704263,3094.7,3094.0,0.6]
[1765554730763,0.405504,3094.7,3094.0,0.6]
[1765554730931,8.75157229,3094.1,3094.0,0.6]
[1765554731248,5.88618729,3094.1,3094.0,0.6]
[1765554731448,8.610757,3094.5,3094.0,0.6]
[1765554731619,0.58047529,3094.4,3094.0,0.6]
[1765554731820,30.0,3094.1,3094.0,0.6]
[1765554732142,19.55823329,3094.1,3094.0,0.6]
[1765554732334,19.55823329,3094.1,3093.5,1e-08]
[1765554732335,0.05,3093.6,3093.5,1e-08]
[1765554732510,0.05,3093.6,3091.1,0.193]
[1765554732511,0.05,3092.3,3091.1,0.193]
[1765554732710,0.405504,3092.4,3089.7,7.14149995]
[1765554732711,0.63047529,3091.9,3090.7,0.193]
[1765554732916,17.213065,3092.4,3091.5,3.23463921]
[1765554733144,13.565078,3092.4,3090.9,7.11905578]
[1765554733336,0.58047529,3091.8,3090.9,3.23528218]
[1765554733532,14.066965,3091.7,3090.7,0.6678]
[1765554733745,30.0,3091.7,3090.8,3.23538751]
[1765554733911,0.405504,3092.3,3091.5,3.23467449]
[1765554733912,6.264834,3092.3,3091.5,3.23467449]
[1765554734112,0.05,3092.8,3091.6,0.559]
[1765554734349,19.761822,3092.7,3091.7,3.23445034]
[1765554734537,4.525453,3092.7,3091.7,6.46891681]
[1765554734724,26.384074,3093.1,3091.8,0.4748]
[1765554734923,26.384074,3093.1,3091.7,6.46891681]
[1765554734924,9.764567,3091.6,3090.7,0.193]
[1765554735125,0.58047529,3091.5,3089.2,0.6]
[1765554735325,4.910191,3091.3,3089.9,0.6678]
[1765554735523,1.0314567,3091.5,3090.0,0.4748]
[1765554735524,23.543073,3091.4,3090.0,0.4748]
[1765554735738,11.753656,3091.4,3090.0,0.4748]
[1765554735937,19.770798,3091.2,3090.0,0.4748]
[1765554736273,30.0,3090.0,3089.8,0.003]
[1765554736414,0.05,3090.2,3089.8,0.003]
[1765554736619,30.63047529,3089.9,3089.8,0.003]
[1765554736848,2.894628,3090.0,3089.8,0.003]
[1765554737044,6.741178,3090.0,3089.8,0.003]
[1765554737245,0.455504,3089.9,3089.8,0.003]
[1765554737446,14.81965129,3089.9,3089.8,0.003]
[1765554738251,6.236502,3089.9,3089.8,0.003]
[1765554738456,29.768257,3089.9,3089.8,0.003]
[1765554738659,27.53950929,3089.9,3089.8,0.003]
[1765554738819,30.35150775,3089.9,3089.8,0.003]
[1765554739220,30.35150775,3089.9,3089.2,0.6]
[1765554739221,26.336515,3089.3,3089.2,0.016187]
[1765554739423,11.02246829,3089.3,3089.2,0.016187]
[1765554739626,11.47463468,3089.3,3089.2,1e-08]
[1765554739852,9.19093629,3089.3,3089.2,1e-08]
[1765554740058,10.34339976,3089.3,3089.2,1e-08]
[1765554740363,35.37542201,3089.3,3089.2,1e-08]
[1765554740715,31.03597929,3088.9,3088.8,0.99697156]
[1765554740952,0.45411387,3089.8,3088.9,0.4554]
[1765554741162,0.05,3091.2,3089.7,8.59345207]
[1765554741453,4.323198,3091.2,3090.2,0.1896]
[1765554741618,4.80013996,3091.4,3090.3,0.56]
[1765554741819,0.02244417,3091.4,3090.3,0.4554]
[1765554742266,2.049668,3091.3,3090.4,0.56]
[1765554742420,0.02244417,3091.4,3090.4,13.50329157]
[1765554742763,2.430041,3093.0,3091.2,21.970102]
[1765554743062,3.409977,3093.9,3091.9,21.970102]
[1765554743265,0.05,3094.7,3092.5,21.970102]
[1765554743546,3.1512,3094.6,3093.2,21.970102]
[1765554743750,17.369475,3093.9,3092.1,0.4554]
[1765554743927,23.170415,3093.5,3092.2,0.56]
[1765554744126,0.05,3094.1,3092.2,0.56]
[1765554744338,19.482978,3094.4,3092.4,12.93493724]
[1765554744520,15.956832,3094.4,3092.5,21.970102]
[1765554744721,0.56,3095.6,3092.5,21.970102]
[1765554744722,6.772371,3095.0,3092.7,21.970102]
[1765554744941,6.849191,3094.4,3092.8,0.56]
[1765554745141,30.0,3093.7,3092.3,3.689183]
[1765554745346,0.58047529,3093.6,3092.4,0.56]
[1765554745541,30.0,3093.3,3092.5,0.56]
[1765554745744,0.52612653,3094.2,3092.5,0.56]
[1765554745745,0.1667,3095.4,3093.9,0.1896]
[1765554745953,3.8591,3095.7,3094.0,1.0154]
[1765554746160,2.684417,3095.5,3094.0,1.0154]
[1765554746459,14.726863,3095.7,3094.3,21.970102]
[1765554746756,14.580926,3095.7,3094.3,21.970102]
[1765554746955,14.580926,3095.7,3094.4,0.56]
[1765554747452,9.643037,3095.7,3094.4,0.56]
[1765554747656,6.404251,3096.1,3094.5,0.4554]
[1765554748320,27.74153,3095.9,3094.7,6.46266196]
[1765554748523,0.5164,3096.0,3094.7,6.46266196]
[1765554748524,30.0,3095.7,3094.8,0.56]
[1765554748724,30.0,3095.9,3094.8,0.56]
[1765554748950,25.251379,3096.1,3094.9,0.56]
[1765554749153,11.867057,3096.1,3094.9,0.56]
[1765554749555,11.867057,3096.1,3095.0,0.56]
[1765554749925,1.1917057,3096.1,3095.1,0.56]
[1765554750128,0.58047529,3096.0,3094.8,0.4554]
[1765554750327,30.0,3095.9,3095.0,3.23101777]
[1765554750536,30.0,3096.1,3095.0,6.46203554]
[1765554750959,23.623249,3096.1,3095.0,6.46203554]
[1765554751166,30.0,3095.9,3095.0,6.46203554]
[1765554751531,6.770004,3094.9,3094.5,0.56]
[1765554751832,0.0161624,3095.4,3094.5,0.56]
[1765554751833,30.0,3095.1,3094.5,0.56]
[1765554752126,5.568517,3095.4,3094.9,3.23109571]
[1765554752364,0.0161624,3095.6,3095.0,3.23101343]
[1765554752365,14.079808,3095.5,3095.0,3.23101343]
[1765554752574,11.237209,3096.4,3095.5,0.1896]
[1765554752860,30.0,3096.6,3095.6,0.559]
[1765554753061,0.0161624,3096.1,3094.5,0.1896]
[1765554753363,17.407248,3094.7,3093.7,6.46475094]
[1765554753529,5.876958,3094.7,3093.7,6.46475094]
[1765554753863,7.162698,3094.9,3093.7,6.46475094]
[1765554754249,8.59345207,3096.4,3093.7,6.46475094]
[1765554754250,0.05,3095.7,3093.9,6.46433304]
[1765554754441,0.58047529,3095.6,3094.0,0.559]
[1765554754765,0.0161624,3095.1,3094.1,0.559]
[1765554754969,0.05,3095.4,3094.1,0.7486]
[1765554755137,23.140869,3095.3,3094.1,0.7486]
[1765554755529,4.30681,3095.2,3094.1,0.7486]
[1765554755765,3.782511,3095.3,3094.2,0.4554]
[1765554756149,3.782511,3095.3,3094.1,0.1896]
[1765554756150,10.855673,3094.8,3094.3,0.559]
[1765554756352,10.855673,3094.8,3094.2,3.23185314]
[1765554756353,6.074153,3094.8,3094.2,3.23185314]
[1765554756553,6.074153,3094.8,3094.3,0.559]
[1765554756862,0.0161624,3095.2,3094.3,0.559]
[1765554757039,4.110922,3095.1,3094.4,0.559]
[1765554757469,0.0161624,3095.2,3094.4,0.559]
[1765554757470,0.0161624,3095.2,3094.4,1.0144]
[1765554757763,0.0161624,3095.2,3094.4,2.40858126]
[1765554758069,0.0161624,3095.2,3094.5,0.4554]
[1765554758564,0.0161624,3095.7,3094.5,0.4554]
[1765554758565,0.0161624,3095.9,3094.6,12.9257416]
[1765554758734,7.971231,3095.8,3094.6,6.4628708]
[1765554758937,9.376935,3095.6,3094.6,6.4628708]
[1765554759133,0.0161624,3095.7,3094.7,0.559]
[1765554759463,15.656038,3095.6,3094.7,1.0144]
[1765554759868,15.656038,3095.6,3094.7,0.4554]
[1765554760166,6.370401,3095.6,3094.8,0.559]
[1765554760670,0.0161624,3095.7,3094.9,6.46224432]
[1765554761267,0.0161624,3095.7,3094.2,3.23183631]
[1765554761268,0.0161624,3095.4,3094.2,3.23183631]
[1765554761568,0.58047529,3095.2,3094.2,0.4554]
[1765554761764,9.012275,3095.1,3094.4,3.231609]
[1765554761968,6.726905,3095.1,3094.2,0.4554]
[1765554762137,16.939196,3095.0,3094.3,0.559]
[1765554762340,0.05,3094.0,3092.5,0.4554]
[1765554762665,30.0,3094.7,3092.6,0.559]
[1765554762666,0.58047529,3093.4,3092.6,0.559]
[1765554762844,0.58047529,3093.0,3092.6,0.559]
[1765554763046,23.771487,3092.9,3091.7,0.1896]
[1765554763269,12.710948,3092.8,3092.0,3.2341404]
[1765554763436,12.710948,3092.8,3092.1,0.559]
[1765554763974,14.862,3092.4,3092.2,0.559]
[1765554764141,5.843804,3092.7,3092.2,0.559]
[1765554764467,0.05,3093.6,3092.3,0.4554]
[1765554764669,0.05,3093.6,3091.6,0.4554]
[1765554764670,0.58047529,3093.4,3091.6,0.4554]
[1765554764867,15.928313,3093.2,3092.2,3.23387657]
[1765554765066,23.9863504,3093.1,3092.2,3.23387657]
[1765554765268,23.9863504,3093.1,3091.6,0.4554]
[1765554765269,0.59663769,3092.9,3091.6,0.4554]
[1765554765467,30.0,3092.8,3091.7,0.559]
[1765554765674,30.0,3092.8,3091.8,3.79332888]
[1765554765884,2.4191,3092.8,3092.3,3.23383889]
[1765554766037,0.0161624,3092.9,3092.3,6.46767778]
[1765554766241,0.5164,3093.6,3092.3,6.46767778]
[1765554766242,0.0161624,3093.7,3092.8,0.1896]
[1765554766441,0.0161624,3093.7,3091.8,3.79326946]
[1765554766442,5.36344,3093.2,3092.7,0.559]
[1765554766686,5.36344,3093.2,3091.8,3.68968654]
[1765554766849,30.0,3093.0,3092.4,3.23373431]
[1765554767212,30.0,3093.0,3090.3,0.1896]
[1765554767213,0.1143,3091.9,3090.3,0.1896]
[1765554767475,28.843509,3091.6,3090.4,0.559]
[1765554767906,11.157765,3091.6,3090.4,1.0144]
[1765554768239,0.4664,3091.5,3090.0,6.4724919]
[1765554768455,0.4664,3091.5,3089.5,3.23676317]
[1765554768456,0.58047529,3090.9,3089.5,3.23676317]
[1765554768660,0.58047529,3090.9,3089.6,0.559]
[1765554768661,4.977935,3090.8,3089.6,0.559]
[1765554768856,0.58047529,3091.5,3089.6,1.0144]
[1765554769063,30.0,3091.4,3089.6,1.0144]
[1765554769352,10.55871229,3091.6,3089.7,0.4554]
[1765554769560,27.846227,3091.5,3089.7,0.4554]
[1765554769883,2.84267023,3091.5,3089.8,0.559]
[1765554770184,0.63047529,3091.3,3089.5,6.97173287]
[1765554770353,30.4531,3091.4,3089.6,0.4982]
[1765554770354,0.05,3090.8,3089.6,0.4982]
[1765554770550,0.405504,3091.1,3088.8,0.99697156]
[1765554770551,22.890899,3090.2,3088.8,0.99697156]
[1765554770751,0.405504,3090.5,3088.8,0.99697156]
[1765554770752,0.58047529,3089.7,3088.8,0.99697156]
[1765554770992,30.0,3089.8,3088.8,0.99697156]
[1765554770993,2.928734,3089.3,3088.8,0.99697156]
[1765554771198,0.58047529,3089.6,3088.8,0.99697156]
[1765554771355,2.5151,3089.3,3088.8,0.99697156]
[1765554771556,11.582291,3090.2,3088.9,0.1892]
[1765554771752,11.582291,3090.2,3089.0,3.23726011]
[1765554771753,18.033816,3090.0,3089.0,3.23726011]
[1765554771984,30.58047529,3089.8,3089.7,0.03236]
[1765554772205,26.03190429,3089.8,3089.7,0.03236]
[1765554772374,16.41204629,3089.8,3089.7,0.03236]
[1765554772577,13.33402143,3089.8,3089.7,0.03236]
[1765554772895,0.46966013,3089.8,3089.7,0.03236]
[1765554773204,11.93392442,3089.8,3089.7,0.03236]
[1765554773717,30.0,3088.9,3088.3,0.03892139]
[1765554773861,0.58047529,3088.6,3088.3,0.03892139]
[1765554774062,3.391335,3088.5,3088.3,0.03892139]
[1765554774257,8.856314,3089.1,3088.3,0.03892139]
[1765554774456,2.06442,3088.8,3088.3,0.59892139]
[1765554774894,0.58047529,3089.4,3088.3,7.57315933]
[1765554774895,20.154789,3089.4,3088.3,7.57315933]
[1765554775093,18.172296,3089.8,3088.3,10.81118672]
[1765554775309,6.697084,3089.7,3088.4,1.0582]
[1765554775487,3.028943,3090.1,3088.5,0.53057817]
[1765554775671,12.460813,3090.3,3088.5,0.4982]
[1765554775857,13.236689,3090.8,3088.5,0.4982]
[1765554776062,0.05,3090.5,3088.6,0.56]
[1765554776382,17.522111,3090.0,3088.5,0.4982]
[1765554776579,25.913015,3089.6,3088.6,3.79771287]
[1765554776781,19.160023,3089.4,3088.5,3.23781692]
[1765554776986,19.067771,3089.6,3088.6,0.56]
[1765554777202,3.23561767,3090.6,3088.6,1.48780169]
[1765554777509,30.0,3090.6,3089.5,0.1892]
[1765554777668,25.430213,3090.6,3089.6,0.56]
[1765554777854,18.591175,3090.6,3089.6,0.56]
[1765554778307,18.591175,3090.6,3089.1,0.1892]
[1765554778496,3.502502,3090.2,3089.3,3.23697925]
[1765554778699,3.502502,3090.2,3089.2,6.47413632]
[1765554778899,7.907248,3090.1,3089.2,3.73525229]
[1765554779203,0.58047529,3090.2,3089.2,6.97233632]
[1765554779204,8.458222,3090.2,3089.2,6.97233632]
[1765554779490,21.572747,3090.3,3089.2,6.97233632]
[1765554779683,21.572747,3090.3,3089.3,0.56]
[1765554779883,24.09891635,3090.3,3089.2,3.73525229]
[1765554780062,19.768604,3090.2,3089.3,0.56]
[1765554780268,17.470568,3090.2,3089.2,0.4982]
[1765554780464,12.9505,3089.6,3088.3,3.27691087]
[1765554780784,7.836412,3089.7,3088.4,0.4982]
[1765554780987,12.39798,3089.4,3088.4,1.0582]
[1765554781189,15.866126,3089.5,3088.4,0.4982]
[1765554781490,0.58047529,3089.4,3088.5,0.56]
[1765554781686,13.249141,3089.3,3088.5,0.56]
[1765554781893,6.5224919,3090.0,3088.5,0.56]
[1765554781894,20.504829,3090.2,3088.6,0.4982]
[1765554782088,0.05,3090.6,3088.6,0.4982]
[1765554782286,9.7062249,3090.8,3088.7,0.56]
[1765554782287,0.58047529,3089.9,3088.7,0.56]
[1765554782489,6.4708166,3090.8,3088.8,6.47500646]
[1765554782677,13.682815,3090.6,3088.8,10.21070969]
[1765554783002,30.0,3090.4,3088.9,0.6874]
[1765554783178,28.30899,3090.4,3088.9,0.6874]
[1765554783361,0.58047529,3090.5,3088.9,0.1892]
[1765554783362,30.58047529,3090.3,3088.9,0.1892]
[1765554783562,4.852336,3089.9,3088.9,0.7492]
[1765554783773,0.05,3090.4,3088.9,0.7492]
[1765554783774,8.850979,3090.0,3088.9,1.2474]
[1765554783980,8.559378,3090.0,3089.0,0.4982]
[1765554784198,3.4675,3090.0,3089.0,0.4982]
[1765554784409,23.223714,3090.6,3089.0,0.4982]
[1765554784613,14.095827,3090.4,3089.1,9.71156646]
[1765554784775,8.706882,3090.8,3089.2,1.34469918]
[1765554784969,8.706882,3090.8,3089.3,1.0582]
[1765554784970,7.375318,3090.8,3089.3,1.0582]
[1765554785171,5.193317,3090.9,3089.3,1.0582]
[1765554785503,2.177097,3091.2,3089.4,0.4982]
[1765554785680,2.105041,3091.2,3089.5,0.96385052]
[1765554785999,30.0,3091.0,3089.5,0.96385052]
[1765554786192,22.193081,3090.8,3089.3,0.56]
[1765554786369,15.213994,3090.8,3089.6,0.4982]
[1765554786570,6.47102598,3090.7,3089.6,0.4982]
[1765554786771,6.47102598,3090.7,3089.2,3.23707309]
[1765554786772,0.58047529,3090.3,3089.2,3.23707309]
[1765554787081,5.315272,3090.4,3089.0,0.4982]
[1765554787082,0.58047529,3090.4,3089.0,0.4982]
[1765554787318,0.05,3090.0,3087.7,0.003]
[1765554787521,0.05,3090.0,3088.6,0.56]
[1765554787522,0.58047529,3089.7,3088.6,0.56]
[1765554787811,11.400941,3089.8,3088.6,0.56]
[1765554788011,1.03357529,3089.7,3088.6,0.56]
[1765554788313,30.0,3089.2,3088.1,0.56]
[1765554788474,0.58047529,3089.3,3088.1,0.56]
[1765554788684,26.64063029,3089.0,3088.1,0.56]
[1765554788895,23.126451,3088.7,3088.1,0.56]
[1765554789089,4.697743,3088.9,3088.1,3.79816944]
[1765554789385,2.125,3089.3,3088.3,3.77512835]
[1765554789599,2.125,3089.3,3088.3,3.77514275]
[1765554789914,3.2369622,3089.4,3088.4,0.4982]
[1765554790087,3.322438,3089.3,3088.4,0.4982]
[1765554790310,3.322438,3089.3,3088.5,0.56]
[1765554790595,0.58047529,3089.2,3088.3,0.03892139]
[1765554790902,4.484918,3088.8,3088.3,0.03892139]
[1765554791071,16.568348,3088.4,3088.3,0.03892139]
[1765554791271,4.5553738,3088.4,3088.3,0.03892139]
[1765554791471,4.5553738,3088.4,3087.2,0.4982]
[1765554791472,0.405504,3087.3,3083.3,3.24317762]
[1765554791676,30.0,3085.8,3083.9,3.24263989]
[1765554791882,1.03357529,3085.7,3083.8,0.56]
[1765554792103,0.58047529,3085.4,3083.3,6.4865566]
[1765554792304,6.944749,3084.5,3083.3,6.4865566]
[1765554792503,0.39462503,3085.3,3083.3,6.4865566]
[1765554792504,10.028282,3085.1,3083.3,9.7280349]
[1765554792694,13.348878,3085.0,3083.3,9.7280349]
[1765554792895,30.0,3084.3,3081.9,3.24771622]
[1765554793095,25.663352,3083.9,3081.9,0.003]
[1765554793295,0.58047529,3084.8,3083.2,6.48676698]
[1765554793296,0.58047529,3084.7,3083.2,6.48676698]
[1765554793493,0.63047529,3085.0,3083.2,6.48676698]
[1765554793494,4.078261,3084.6,3083.2,6.48676698]
[1765554793804,0.58047529,3084.3,3082.4,4.71469339]
[1765554794003,0.58047529,3084.3,3083.0,3.24348982]
[1765554794206,18.15189143,3084.2,3082.4,1.47055785]
[1765554794410,0.05,3084.0,3082.5,6.48824006]
[1765554794720,5.321074,3083.8,3082.5,6.98644006]
[1765554794877,0.1951,3084.1,3082.4,1.47055785]
[1765554794878,9.429332,3083.6,3082.4,4.71469243]
[1765554795073,0.05,3083.3,3082.4,1.47055785]
[1765554795305,4.59253,3083.6,3082.4,1.47055785]
[1765554795306,15.152999,3083.6,3082.4,4.71476881]
[1765554795504,15.152999,3083.6,3082.4,1.47055785]
[1765554795680,3.464,3083.6,3082.5,3.24410761]
[1765554795876,0.4531,3084.5,3082.5,6.98642764]
[1765554796077,25.094248,3084.3,3082.6,0.4982]
[1765554796299,5.39177,3084.0,3082.6,0.56]
[1765554796506,2.807155,3083.9,3082.7,0.4982]
[1765554796706,11.506135,3084.0,3082.8,3.24380433]
[1765554796913,4.883128,3084.0,3082.8,3.24380433]
[1765554797209,7.087511,3084.1,3082.8,6.48760866]
[1765554797407,0.05,3084.6,3082.8,6.48760866]
[1765554797408,3.24167255,3084.9,3083.0,7.17738309]
[1765554797575,3.029006,3084.8,3082.9,1.19168087]
[1765554797774,3.029006,3084.8,3082.8,9.73141299]
[1765554797775,30.0,3084.6,3082.8,6.48760866]
[1765554798110,0.58047529,3084.7,3082.9,0.56]
[1765554798111,0.58047529,3084.0,3082.9,0.56]
[1765554798405,13.978821,3083.9,3082.9,0.56]
[1765554798612,16.181191,3084.1,3082.9,0.56]
[1765554798796,16.512638,3084.4,3083.0,6.4871878]
[1765554799007,10.775228,3084.1,3082.9,0.56]
[1765554799309,7.591023,3085.3,3083.4,7.17738309]
[1765554799522,2.218485,3085.9,3083.6,0.405504]
[1765554799680,2.218485,3085.9,3083.7,1.0541]
[1765554799879,14.042344,3085.7,3083.8,1.38414831]
[1765554800190,1.3552392,3085.8,3083.8,0.561]
[1765554800191,6.757662,3085.2,3083.8,0.561]
[1765554800385,2.708936,3085.4,3083.9,0.4502]
[1765554800616,0.05,3086.5,3083.9,0.4502]
[1765554800617,3.145312,3085.7,3084.0,7.17738309]
[1765554800783,0.05,3086.6,3084.3,12.96890704]
[1765554800988,5.449546,3086.4,3084.7,7.17738309]
[1765554801187,11.268827,3086.5,3084.7,7.17738309]
[1765554801522,2.132261,3087.3,3085.3,7.17738309]
[1765554801826,0.5417,3087.7,3084.8,0.4502]
[1765554801827,19.745516,3087.5,3085.8,7.17738309]
[1765554802125,0.05,3089.0,3087.6,0.1851]
[1765554802327,3.44199761,3089.8,3087.7,0.561]
[1765554802328,4.81118,3089.7,3087.7,0.561]
[1765554802489,4.81118,3089.7,3087.8,7.17738309]
[1765554802693,0.0161624,3089.8,3088.3,7.17738309]
[1765554802905,0.5771624,3090.8,3088.3,7.17738309]
[1765554802906,5.832391,3090.6,3088.4,12.95169016]
[1765554803119,0.97712852,3090.5,3088.5,2.89770337]
[1765554803291,0.0161624,3090.5,3088.8,7.17738309]
[1765554803688,0.4917,3090.4,3088.5,0.4502]
[1765554803893,15.271449,3090.3,3088.9,0.561]
[1765554804118,30.0,3089.9,3088.1,3.23820003]
[1765554804320,0.58047529,3089.4,3088.2,0.562]
[1765554804525,0.05,3089.8,3088.3,3.2380234]
[1765554804765,0.05,3089.8,3088.2,0.562]
[1765554804766,0.58047529,3089.2,3087.6,0.1851]
[1765554805037,0.58047529,3089.2,3087.6,0.7471]
[1765554805038,9.904919,3088.8,3087.6,0.7471]
[1765554805326,9.904919,3088.8,3087.1,3.23924046]
[1765554805327,0.05,3088.5,3087.1,3.23924046]
[1765554805535,0.58047529,3088.1,3086.9,0.562]
[1765554805693,0.05,3087.6,3086.9,0.562]
[1765554806040,0.58047529,3087.2,3086.9,0.562]
[1765554806224,0.58047529,3087.3,3086.9,0.562]
[1765554806429,6.362424,3087.2,3086.9,0.562]
[1765554806637,30.0,3087.0,3085.0,0.4502]
[1765554806936,30.0,3087.0,3084.5,0.0161624]
[1765554806937,0.58047529,3086.1,3084.5,6.93423306]
[1765554807135,0.58047529,3086.1,3085.1,0.562]
[1765554807457,3.448426,3086.0,3085.1,0.562]
[1765554807655,9.72037713,3086.3,3085.1,0.562]
[1765554807656,7.81353,3086.3,3085.1,0.562]
[1765554807948,10.965844,3086.3,3084.6,0.4502]
[1765554808153,15.398852,3086.1,3086.0,0.002]
[1765554808309,17.33265629,3086.1,3086.0,0.002]
[1765554808510,16.7683434,3086.1,3086.0,0.002]
[1765554808711,2.028243,3086.8,3086.0,0.002]
[1765554809015,0.0161624,3087.5,3086.2,0.58047529]
[1765554809315,0.0161624,3087.5,3086.3,0.561]
[1765554809727,0.0161624,3087.5,3086.4,0.4502]
[1765554809935,0.0161624,3087.5,3086.7,7.17738309]
[1765554810108,2.225488,3089.0,3087.3,7.17738309]
[1765554810309,3.43196077,3089.6,3086.8,0.71773831]
[1765554810310,3.23624595,3090.0,3087.8,7.17738309]
[1765554810506,0.05,3090.1,3087.4,0.561]
[1765554810732,3.609041,3090.6,3088.8,7.17738309]
[1765554810935,19.089783,3090.9,3089.3,7.17738309]
[1765554811137,3.25138998,3091.0,3089.8,7.17738309]
[1765554811138,0.0161624,3091.0,3089.8,7.17738309]
[1765554811341,0.0161624,3091.0,3089.9,0.6311]
[1765554811646,0.0161624,3091.0,3090.3,7.17738309]
[1765554811846,0.0161624,3091.0,3090.8,7.17738309]
[1765554812020,0.0161624,3091.0,3090.4,0.561]
[1765554812021,0.0161624,3091.0,3090.0,0.4502]
[1765554812222,3.8711,3091.9,3090.1,0.561]
[1765554812442,11.362158,3091.7,3090.1,0.561]
[1765554812746,8.627609,3091.9,3090.1,0.4502]
[1765554812947,6.46833038,3092.0,3090.2,7.033073]
[1765554812948,7.249037,3091.7,3090.2,7.033073]
[1765554813151,30.0,3091.6,3090.2,0.561]
[1765554813361,23.25745,3091.6,3090.2,0.561]
[1765554813539,14.28636,3091.4,3090.2,0.561]
[1765554813741,27.457744,3091.2,3090.2,0.561]
[1765554814042,0.58047529,3090.9,3089.3,0.1809]
[1765554814218,3.844122,3090.8,3089.2,7.17738309]
[1765554814407,0.58047529,3090.7,3089.3,0.561]
[1765554814606,0.58047529,3090.5,3089.4,0.561]
[1765554814807,5.24001391,3090.7,3089.5,3.2367697]
[1765554815040,6.47121982,3090.7,3089.4,0.561]
[1765554815228,17.441499,3090.5,3089.4,0.561]
[1765554815428,4.107973,3090.5,3089.4,0.561]
[1765554815628,6.47121982,3090.7,3089.4,3.79784051]
[1765554815846,0.58047529,3090.5,3089.4,0.561]
[1765554816056,16.55697,3090.4,3089.4,0.561]
[1765554816240,2.4691,3090.4,3089.4,3.79784462]
[1765554816421,2.4691,3090.4,3089.4,0.561]
[1765554816947,6.370344,3090.2,3089.4,0.561]
[1765554817166,3.23583465,3090.4,3089.4,0.561]
[1765554817331,7.006698,3090.3,3089.4,0.561]